lending/lending_fUSD_20250122
["ID","MTS","AMOUNT","RATE_DAILY","PERIOD"]
[350004214,1737561056357,-500.0,0.00021512,2]
[350004215,1737561056370,-500.0,0.00021512,2]
[350004216,1737561056379,-500.0,0.00021512,2]
[350004217,1737561056389,-500.0,0.00021512,2]
[350004218,1737561056398,-263.41538994,0.00021512,2]
[350004219,1737561056407,-519.71,0.00021512,2]
[350004220,1737561056417,-500.0,0.00021512,2]
[350004221,1737561056426,-730.26,0.00021512,2]
[350004222,1737561056436,-500.0,0.00021512,2]
[350004223,1737561056445,-500.0,0.00021512,2]
[350004224,1737561056454,-500.0,0.00021512,2]
[350004225,1737561056464,-500.0,0.00021512,2]
[350004226,1737561056473,-589.51,0.00021512,2]
[350004227,1737561056482,-485.46118691,0.00021512,2]
[350004228,1737561056492,-500.0,0.00021512,2]
[350004229,1737561056501,-500.0,0.00021512,2]
[350004230,1737561056511,-500.0,0.00021512,2]
[350004231,1737561056521,-500.0,0.00021512,2]
[350004232,1737561056531,-500.0,0.00021512,2]
[350004233,1737561056541,-500.0,0.00021512,2]
[350004234,1737561056550,-500.0,0.00021512,2]
[350004235,1737561056560,-500.0,0.00021512,2]
[350004236,1737561056570,-500.0,0.00021512,2]
[350004237,1737561056580,-500.0,0.00021512,2]
[350004238,1737561056590,-500.0,0.00021512,2]
[350004239,1737561056599,-500.0,0.00021512,2]
[350004240,1737561056610,-500.0,0.00021512,2]
[350004241,1737561056619,-500.0,0.00021512,2]
[350004242,1737561056629,-500.0,0.00021512,2]
[350004243,1737561056638,-500.0,0.00021512,2]
[350004244,1737561056648,-500.0,0.00021512,2]
[350004245,1737561056657,-624.65,0.00021512,2]
[350004246,1737561056667,-500.0,0.00021512,2]
[350004247,1737561056678,-254.81736517,0.00021512,2]
[350004248,1737561056687,-601.86,0.00021512,2]
[350004249,1737561056696,-587.11300792,0.00021512,2]
[350004250,1737561056706,-808.95,0.00021512,2]
[350004251,1737561056717,-1002.72,0.00021512,2]
[350004252,1737561056726,-598.37,0.00021512,2]
[350004253,1737561056735,-500.0,0.00021512,2]
[350004254,1737561056745,-500.0,0.00021512,2]
[350004255,1737561056754,-500.0,0.00021512,2]
[350004256,1737561056764,-500.0,0.00021512,2]
[350004257,1737561056773,-500.0,0.00021512,2]
[350004258,1737561056783,-500.0,0.00021512,2]
[350004259,1737561056792,-500.0,0.00021512,2]
[350004260,1737561056802,-158.52200961,0.00021512,2]
[350004261,1737561056811,-500.0,0.00021512,2]
[350004262,1737561056820,-204.45799477,0.00021512,2]
[350004263,1737561056829,-500.0,0.00021512,2]
[350004264,1737561056840,-1011.66,0.00021512,2]
[350004265,1737561056850,-500.0,0.00021512,2]
[350004266,1737561056860,-687.52,0.00021512,2]
[350004267,1737561056870,-907.1,0.00021512,2]
[350004268,1737561056880,-500.0,0.00021512,2]
[350004269,1737561056890,-500.0,0.00021512,2]
[350004270,1737561056899,-500.0,0.00021512,2]
[350004271,1737561056908,-500.0,0.00021512,2]
[350004272,1737561056917,-500.0,0.00021512,2]
[350004273,1737561056927,-500.0,0.00021512,2]
[350004274,1737561056938,-500.0,0.00021512,2]
[350004275,1737561056947,-608.3,0.00021512,2]
[350004276,1737561056957,-560.71,0.00021512,2]
[350004277,1737561056967,-500.0,0.00021512,2]
[350004278,1737561056976,-500.0,0.00021512,2]
[350004279,1737561056986,-500.0,0.00021512,2]
[350004280,1737561056995,-500.0,0.00021512,2]
[350004281,1737561057004,-500.0,0.00021512,2]
[350004282,1737561057013,-611.17,0.00021512,2]
[350004283,1737561057023,-298.68649831,0.00021512,2]
[350004284,1737561057034,-500.0,0.00021512,2]
[350004285,1737561057044,-500.0,0.00021512,2]
[350004286,1737561057056,-581.22,0.00021512,2]
[350004287,1737561057065,-500.0,0.00021512,2]
[350004288,1737561057074,-915.57,0.00021512,2]
[350004289,1737561057084,-500.0,0.00021512,2]
[350004290,1737561057093,-196.54423618,0.00021512,2]
[350004291,1737561057102,-500.0,0.00021512,2]
[350004292,1737561057111,-150.0,0.00021513,4]
[350004293,1737561057120,-500.0,0.00021513,2]
[350004294,1737561057129,-1096.36,0.00021513,2]
[350004295,1737561057140,-500.0,0.00021513,2]
[350004296,1737561057151,-1023.68,0.00021513,2]
[350004297,1737561057162,-846.45,0.00021513,2]
[350004298,1737561057172,-500.0,0.00021513,2]
[350004299,1737561057181,-500.0,0.00021513,2]
[350004300,1737561057191,-500.0,0.00021513,2]
[350004301,1737561057200,-758.97,0.00021513,2]
[350004302,1737561057209,-500.0,0.00021513,2]
[350004303,1737561057220,-500.0,0.00021513,2]
[350004304,1737561057229,-504.85,0.00021513,2]
[350004305,1737561057238,-593.05,0.00021513,2]
[350004306,1737561057248,-500.0,0.00021513,2]
[350004307,1737561057258,-206.07062006,0.00021515,2]
[350004308,1737561057267,-424.33663619,0.00021517,4]
[350004309,1737561057277,-217.07278203,0.00021517,4]
[350004310,1737561057287,-352.78032646,0.00021519,2]
[350004311,1737561057296,-4496.61963517,0.0002152,2]
[350004312,1737561057305,-1000.0,0.00021521,2]
[350004313,1737561057315,-150.0,0.00021525,4]
[350004314,1737561057324,-424.33663619,0.00021527,4]
[350004315,1737561057336,-217.07278203,0.00021527,4]
[350004316,1737561057346,-150.0,0.00021533,4]
[350004317,1737561057356,-547.1,0.00021536,2]
[350004318,1737561057367,-424.33663619,0.00021537,4]
[350004319,1737561057376,-217.07278203,0.00021537,4]
[350004320,1737561057385,-969.0,0.00021537,2]
[350004321,1737561057394,-150.0,0.00021538,4]
[350004322,1737561057404,-424.33663619,0.00021547,4]
[350004323,1737561057413,-217.07278203,0.00021547,4]
[350004324,1737561057422,-150.0,0.00021551,4]
[350004325,1737561057432,-206.07062006,0.00021554,2]
[350004326,1737561057441,-150.448,0.00021556,2]
[350004327,1737561057450,-278.617,0.00021556,2]
[350004328,1737561057459,-424.33663619,0.00021557,4]
[350004329,1737561057471,-217.07278203,0.00021557,4]
[350004330,1737561057481,-150.0,0.00021564,4]
[350004331,1737561057491,-969.0,0.00021564,2]
[350004332,1737561057500,-424.33663619,0.00021567,4]
[350004333,1737561057509,-217.07278203,0.00021567,4]
[350004334,1737561057519,-150.0,0.00021567,4]
[350004335,1737561057528,-813.53,0.0002157,2]
[350004336,1737561057538,-424.33663619,0.00021577,4]
[350004337,1737561057547,-150.0,0.00021577,4]
[350004338,1737561057556,-217.07278203,0.00021577,4]
[350004339,1737561057565,-424.33663619,0.00021587,4]
[350004340,1737561057575,-217.07278203,0.00021587,4]
[350004341,1737561057584,-150.0,0.00021589,4]
[350004342,1737561057593,-969.0,0.00021592,2]
[350004343,1737561057603,-206.07062006,0.00021592,2]
[350004344,1737561057612,-150.0,0.00021595,4]
[350004345,1737561057621,-424.33663619,0.00021597,4]
[350004346,1737561057632,-217.07278203,0.00021597,4]
[350004347,1737561057641,-154.454,0.00021597,2]
[350004348,1737561057650,-200.387,0.00021597,2]
[350004349,1737561057660,-2065.0,0.00021598,2]
[350004350,1737561057669,-389.61253116,0.000216,2]
[350004351,1737561057678,-193.11044004,0.000216,3]
[350004352,1737561057688,-150.0,0.00021601,4]
[350004353,1737561057697,-150.0,0.00021602,4]
[350004354,1737561057706,-424.33663619,0.00021607,4]
[350004355,1737561057717,-217.07278203,0.00021607,4]
[350004356,1737561057726,-150.0,0.00021615,4]
[350004357,1737561057736,-424.33663619,0.00021617,4]
[350004358,1737561057745,-217.07278203,0.00021617,4]
[350004359,1737561057755,-151.0,0.00021618,2]
[350004360,1737561057764,-184.98744,0.00021618,2]
[350004361,1737561057773,-184.98744,0.00021618,2]
[350004362,1737561057782,-151.0,0.00021618,2]
[350004363,1737561057791,-169.069636,0.00021618,2]
[350004364,1737561057801,-169.069636,0.00021618,2]
[350004365,1737561057810,-151.0,0.00021618,2]
[350004366,1737561057819,-7316.193718,0.00021618,2]
[350004367,1737561057829,-7316.193718,0.00021618,2]
[350004368,1737561057840,-540.626308,0.00021618,2]
[350004369,1737561057851,-540.626308,0.00021618,2]
[350004370,1737561057860,-969.0,0.00021619,2]
[350004371,1737561057869,-424.33663619,0.00021627,4]
[350004372,1737561057881,-217.07278203,0.00021627,4]
[350004373,1737561057891,-150.0,0.00021628,4]
[350004374,1737561057900,-206.07062006,0.00021631,3]
[350004375,1737561057909,-5025.810264,0.00021635,2]
[350004376,1737561057917,-5000.0,0.00021635,2]
[350004377,1737561057929,-334.337677,0.00021635,2]
[350004378,1737561057938,-334.337677,0.00021635,2]
[350004379,1737561057947,-153.397071,0.00021635,2]
[350004380,1737561057956,-150.0,0.00021635,4]
[350004381,1737561057968,-424.33663619,0.00021636,4]
[350004382,1737561057978,-217.07278203,0.00021636,4]
[350004383,1737561057987,-221.190482,0.0002164,2]
[350004384,1737561057996,-194.853145,0.0002164,2]
[350004385,1737561058006,-194.853145,0.0002164,2]
[350004386,1737561058015,-196.425817,0.0002164,2]
[350004387,1737561058025,-196.425817,0.0002164,2]
[350004388,1737561058037,-274.760227,0.0002164,2]
[350004389,1737561058047,-274.760227,0.0002164,2]
[350004390,1737561058056,-333.110584,0.0002164,2]
[350004391,1737561058066,-333.110584,0.0002164,2]
[350004392,1737561058075,-150.0,0.00021641,4]
[350004393,1737561058085,-352.78032646,0.00021646,2]
[350004394,1737561058094,-424.33663619,0.00021646,4]
[350004395,1737561058103,-217.07278203,0.00021646,4]
[350004396,1737561058112,-969.0,0.00021647,2]
[350004397,1737561058122,-150.0,0.00021654,4]
[350004398,1737561058131,-424.33663619,0.00021656,4]
[350004399,1737561058140,-217.07278203,0.00021656,4]
[350004400,1737561058149,-424.33663619,0.00021666,4]
[350004401,1737561058158,-150.0,0.00021666,4]
[350004402,1737561058167,-217.07278203,0.00021666,4]
[350004403,1737561058176,-206.07062006,0.00021669,3]
[350004404,1737561058186,-150.0,0.00021669,4]
[350004405,1737561058196,-547.1,0.00021673,2]
[350004406,1737561058206,-969.0,0.00021674,2]
[350004407,1737561058216,-424.33663619,0.00021676,4]
[350004408,1737561058226,-217.07278203,0.00021676,4]
[350004409,1737561058236,-150.0,0.00021679,4]
[350004410,1737561058245,-534.61,0.00021685,7]
[350004411,1737561058254,-534.61,0.00021685,7]
[350004412,1737561058265,-424.33663619,0.00021686,4]
[350004413,1737561058274,-217.07278203,0.00021686,4]
[350004414,1737561058283,-500.0,0.00021687,2]
[350004415,1737561058293,-500.0,0.00021687,2]
[350004416,1737561058303,-500.0,0.00021687,2]
[350004417,1737561058312,-500.0,0.00021687,2]
[350004418,1737561058321,-500.0,0.00021687,2]
[350004419,1737561058453,-500.0,0.00021687,2]
[350004420,1737561058462,-500.0,0.00021687,2]
[350004421,1737561058472,-500.0,0.00021687,2]
[350004422,1737561058481,-500.0,0.00021687,2]
[350004423,1737561058491,-583.68,0.00021687,2]
[350004424,1737561058500,-1913.12,0.00021687,2]
[350004425,1737561058509,-777.39,0.00021687,2]
[350004426,1737561058519,-500.0,0.00021687,2]
[350004427,1737561058529,-734.65,0.00021687,2]
[350004428,1737561058538,-1921.41,0.00021687,2]
[350004429,1737561058547,-500.0,0.00021687,2]
[350004430,1737561058557,-500.0,0.00021687,2]
[350004431,1737561058567,-500.0,0.00021687,2]
[350004432,1737561058577,-1387.92,0.00021687,2]
[350004433,1737561058587,-1362.93,0.00021687,2]
[350004434,1737561058596,-1577.83,0.00021687,2]
[350004435,1737561058606,-1021.71,0.00021687,2]
[350004436,1737561058615,-500.0,0.00021687,2]
[350004437,1737561058624,-2067.0,0.00021687,2]
[350004438,1737561058635,-1157.29,0.00021687,2]
[350004439,1737561058644,-1822.39,0.00021687,2]
[350004440,1737561058654,-1240.96,0.00021687,2]
[350004441,1737561058665,-500.0,0.00021687,2]
[350004442,1737561058674,-1071.01,0.00021687,2]
[350004443,1737561058683,-500.0,0.00021687,2]
[350004444,1737561058693,-659.8,0.00021687,2]
[350004445,1737561058703,-500.0,0.00021687,2]
[350004446,1737561058713,-3026.04,0.00021687,2]
[350004447,1737561058722,-500.0,0.00021687,2]
[350004448,1737561058731,-500.0,0.00021687,2]
[350004449,1737561058741,-724.78,0.00021687,2]
[350004450,1737561058751,-1386.84,0.00021687,2]
[350004451,1737561058760,-500.0,0.00021687,2]
[350004452,1737561058769,-500.0,0.00021687,2]
[350004453,1737561058779,-150.0,0.00021692,4]
[350004454,1737561058789,-424.33663619,0.00021696,4]
[350004455,1737561058799,-217.07278203,0.00021696,4]
[350004456,1737561058808,-7242.70965318,0.000217,2]
[350004457,1737561058817,-969.0,0.00021701,2]
[350004458,1737561058827,-150.0,0.00021703,4]
[350004459,1737561058840,-150.0,0.00021705,4]
[350004460,1737561058850,-424.33663619,0.00021706,4]
[350004461,1737561058859,-217.07278203,0.00021706,4]
[350004462,1737561058869,-206.07062006,0.00021708,3]
[350004463,1737561058879,-424.33663619,0.00021716,4]
[350004464,1737561058889,-217.07278203,0.00021716,4]
[350004465,1737561058898,-150.0,0.00021718,4]
[350004466,1737561058907,-151.0,0.00021719,2]
[350004467,1737561058919,-151.0,0.00021719,2]
[350004468,1737561058928,-424.33663619,0.00021726,4]
[350004469,1737561058937,-217.07278203,0.00021726,4]
[350004470,1737561058947,-969.0,0.00021729,2]
[350004471,1737561058956,-166.66,0.00021729,2]
[350004472,1737561058968,-150.0,0.0002173,4]
[350004473,1737561058977,-500.0,0.00021734,2]
[350004474,1737561058987,-716.07,0.00021734,2]
[350004475,1737561058996,-500.0,0.00021734,2]
[350004476,1737561059006,-1901.12,0.00021735,2]
[350004477,1737561059015,-1284.9,0.00021735,2]
[350004478,1737561059024,-2189.36,0.00021735,2]
[350004479,1737561059033,-1089.21,0.00021735,2]
[350004480,1737561059043,-1048.151989,0.00021735,2]
[350004481,1737561059053,-850.53,0.00021735,2]
[350004482,1737561059063,-584.33,0.00021735,2]
[350004483,1737561059072,-500.0,0.00021735,2]
[350004484,1737561059081,-950.99,0.00021735,2]
[350004485,1737561059090,-500.0,0.00021735,2]
[350004486,1737561059101,-1303.74,0.00021735,2]
[350004487,1737561059111,-710.76085,0.00021735,2]
[350004488,1737561059120,-1465.35,0.00021735,2]
[350004489,1737561059132,-1858.92,0.00021735,2]
[350004490,1737561059141,-1022.99,0.00021735,2]
[350004491,1737561059150,-1069.34,0.00021735,2]
[350004492,1737561059159,-3037.7,0.00021735,2]
[350004493,1737561059169,-1159.41,0.00021735,2]
[350004494,1737561059179,-730.51,0.00021735,2]
[350004495,1737561059188,-1042.13,0.00021735,2]
[350004496,1737561059199,-2346.84,0.00021735,2]
[350004497,1737561059208,-1599.28,0.00021735,2]
[350004498,1737561059219,-583.87,0.00021735,2]
[350004499,1737561059228,-2614.66,0.00021735,2]
[350004500,1737561059238,-1403.3,0.00021735,2]
[350004501,1737561059247,-3164.3,0.00021735,2]
[350004502,1737561059256,-1386.72,0.00021735,2]
[350004503,1737561059266,-1193.04,0.00021735,2]
[350004504,1737561059276,-3400.47,0.00021735,2]
[350004505,1737561059285,-424.33663619,0.00021736,4]
[350004506,1737561059294,-217.07278203,0.00021736,4]
[350004507,1737561059305,-150.0,0.00021738,4]
[350004508,1737561059314,-249.0,0.0002174,2]
[350004509,1737561059324,-150.0,0.00021743,4]
[350004510,1737561059333,-424.33663619,0.00021746,4]
[350004511,1737561059343,-217.07278203,0.00021746,4]
[350004512,1737561059352,-206.07062006,0.00021746,3]
[350004513,1737561059362,-389.61253116,0.0002175,2]
[350004514,1737561059371,-424.33663619,0.00021756,4]
[350004515,1737561059380,-150.0,0.00021756,4]
[350004516,1737561059390,-217.07278203,0.00021756,4]
[350004517,1737561059398,-969.0,0.00021756,2]
[350004518,1737561059408,-424.33663619,0.00021766,4]
[350004519,1737561059417,-217.07278203,0.00021766,4]
[350004520,1737561059426,-150.0,0.00021769,4]
[350004521,1737561059435,-150.0,0.00021772,4]
[350004522,1737561059445,-150.0,0.00021773,2]
[350004523,1737561059455,-352.78032646,0.00021773,2]
[350004524,1737561059465,-424.33663619,0.00021776,4]
[350004525,1737561059474,-217.07278203,0.00021776,4]
[350004526,1737561059484,-500.0,0.0002178,2]
[350004527,1737561059493,-500.0,0.0002178,2]
[350004528,1737561059502,-500.0,0.0002178,2]
[350004529,1737561059511,-500.0,0.0002178,2]
[350004530,1737561059520,-500.0,0.0002178,2]
[350004531,1737561059529,-500.0,0.0002178,2]
[350004532,1737561059538,-500.0,0.0002178,2]
[350004533,1737561059547,-500.0,0.0002178,2]
[350004534,1737561059556,-500.0,0.0002178,2]
[350004535,1737561059565,-500.0,0.0002178,2]
[350004536,1737561059574,-500.0,0.0002178,2]
[350004537,1737561059583,-500.0,0.0002178,2]
[350004538,1737561059592,-169.51479332,0.0002178,2]
[350004539,1737561059602,-150.0,0.00021782,4]
[350004540,1737561059611,-42623.0,0.00021782,2]
[350004541,1737561059620,-969.0,0.00021784,2]
[350004542,1737561059629,-500.0,0.00021784,2]
[350004543,1737561059638,-500.0,0.00021784,2]
[350004544,1737561059647,-814.27,0.00021784,2]
[350004545,1737561059656,-699.56,0.00021784,2]
[350004546,1737561059665,-544.6,0.00021784,2]
[350004547,1737561059674,-938.57,0.00021784,2]
[350004548,1737561059683,-500.0,0.00021784,2]
[350004549,1737561059692,-500.0,0.00021784,2]
[350004550,1737561059702,-500.0,0.00021784,2]
[350004551,1737561059712,-500.0,0.00021784,2]
[350004552,1737561059722,-701.97,0.00021784,2]
[350004553,1737561059732,-500.0,0.00021784,2]
[350004554,1737561059741,-714.1,0.00021784,2]
[350004555,1737561059750,-933.3,0.00021784,2]
[350004556,1737561059760,-797.67,0.00021784,2]
[350004557,1737561059769,-500.0,0.00021784,2]
[350004558,1737561059778,-500.0,0.00021784,2]
[350004559,1737561059788,-500.0,0.00021784,2]
[350004560,1737561059798,-500.0,0.00021784,2]
[350004561,1737561059808,-500.0,0.00021784,2]
[350004562,1737561059818,-500.0,0.00021784,2]
[350004563,1737561059828,-500.0,0.00021784,2]
[350004564,1737561059839,-500.0,0.00021784,2]
[350004565,1737561059852,-571.76,0.00021784,2]
[350004566,1737561059862,-500.0,0.00021784,2]
[350004567,1737561059871,-868.43,0.00021784,2]
[350004568,1737561059882,-500.0,0.00021784,2]
[350004569,1737561059891,-1041.14,0.00021784,2]
[350004570,1737561059900,-500.0,0.00021784,2]
[350004571,1737561059910,-1007.77,0.00021784,2]
[350004572,1737561059922,-500.0,0.00021784,2]
[350004573,1737561059932,-500.0,0.00021784,2]
[350004574,1737561059943,-814.19,0.00021784,2]
[350004575,1737561059952,-500.0,0.00021784,2]
[350004576,1737561059962,-500.0,0.00021784,2]
[350004577,1737561059973,-1169.53,0.00021784,2]
[350004578,1737561059982,-500.0,0.00021784,2]
[350004579,1737561059991,-503.91,0.00021784,2]
[350004580,1737561060000,-500.0,0.00021784,2]
[350004581,1737561060010,-500.0,0.00021784,2]
[350004582,1737561060020,-500.0,0.00021784,2]
[350004583,1737561060030,-500.0,0.00021784,2]
[350004584,1737561060039,-500.0,0.00021784,2]
[350004585,1737561060049,-500.0,0.00021784,2]
[350004586,1737561060059,-500.0,0.00021784,2]
[350004587,1737561060068,-868.31,0.00021784,2]
[350004588,1737561060077,-936.05,0.00021784,2]
[350004589,1737561060087,-943.02,0.00021784,2]
[350004590,1737561060097,-710.57,0.00021784,2]
[350004591,1737561060107,-500.0,0.00021784,2]
[350004592,1737561060117,-740.49,0.00021784,2]
[350004593,1737561060127,-849.79,0.00021784,2]
[350004594,1737561060137,-500.0,0.00021784,2]
[350004595,1737561060147,-500.0,0.00021784,2]
[350004596,1737561060156,-729.86,0.00021784,2]
[350004597,1737561060166,-1325.49,0.00021784,2]
[350004598,1737561060177,-500.0,0.00021784,2]
[350004599,1737561060188,-736.4,0.00021784,2]
[350004600,1737561060198,-151.0,0.00021784,2]
[350004601,1737561060209,-151.0,0.00021784,2]
[350004602,1737561060223,-1313.17,0.00021784,2]
[350004603,1737561060234,-756.94,0.00021784,2]
[350004604,1737561060245,-500.0,0.00021784,2]
[350004605,1737561060257,-889.45,0.00021784,2]
[350004606,1737561060268,-1671.82,0.00021784,2]
[350004607,1737561060280,-869.43,0.00021784,2]
[350004608,1737561060291,-1219.9,0.00021784,2]
[350004609,1737561060303,-151.0,0.00021784,2]
[350004610,1737561060313,-1936.2,0.00021784,2]
[350004611,1737561060324,-1090.25,0.00021784,2]
[350004612,1737561060335,-2282.81,0.00021784,2]
[350004613,1737561060346,-857.24,0.00021784,2]
[350004614,1737561060357,-3260.25,0.00021784,2]
[350004615,1737561060367,-745.37,0.00021784,2]
[350004616,1737561060378,-1183.05,0.00021784,2]
[350004617,1737561060388,-500.0,0.00021784,2]
[350004618,1737561060399,-500.0,0.00021784,2]
[350004619,1737561060410,-3734.26,0.00021784,2]
[350004620,1737561060424,-1914.34,0.00021784,2]
[350004621,1737561060434,-500.0,0.00021784,2]
[350004622,1737561060445,-1244.09,0.00021784,2]
[350004623,1737561060456,-500.0,0.00021784,2]
[350004624,1737561060467,-500.0,0.00021784,2]
[350004625,1737561060477,-1115.53,0.00021784,2]
[350004626,1737561060488,-500.0,0.00021784,2]
[350004627,1737561060498,-500.0,0.00021784,2]
[350004628,1737561060508,-500.0,0.00021784,2]
[350004629,1737561060518,-567.71,0.00021784,2]
[350004630,1737561060527,-500.0,0.00021784,2]
[350004631,1737561060538,-832.91,0.00021784,2]
[350004632,1737561060548,-1500.31,0.00021784,2]
[350004633,1737561060557,-1782.64,0.00021784,2]
[350004634,1737561060567,-1058.45,0.00021784,2]
[350004635,1737561060576,-638.44,0.00021784,2]
[350004636,1737561060586,-206.07062006,0.00021785,3]
[350004637,1737561060595,-206.283695,0.00021785,2]
[350004638,1737561060605,-206.283695,0.00021785,2]
[350004639,1737561060614,-1472.99,0.00021785,2]
[350004640,1737561060624,-500.0,0.00021785,2]
[350004641,1737561060634,-1783.97,0.00021785,2]
[350004642,1737561060643,-500.0,0.00021785,2]
[350004643,1737561060653,-1904.35,0.00021785,2]
[350004644,1737561060662,-998.26,0.00021785,2]
[350004645,1737561060672,-500.0,0.00021785,2]
[350004646,1737561060682,-596.92,0.00021785,2]
[350004647,1737561060692,-1051.03,0.00021785,2]
[350004648,1737561060702,-926.05,0.00021785,2]
[350004649,1737561060712,-500.0,0.00021785,2]
[350004650,1737561060726,-1132.52,0.00021785,2]
[350004651,1737561060736,-1471.28,0.00021785,2]
[350004652,1737561060747,-949.56,0.00021785,2]
[350004653,1737561060756,-1416.28,0.00021785,2]
[350004654,1737561060765,-3083.91,0.00021785,2]
[350004655,1737561060775,-6269.62,0.00021785,2]
[350004656,1737561060784,-1023.62,0.00021785,2]
[350004657,1737561060794,-1023.89,0.00021785,2]
[350004658,1737561060803,-2317.93,0.00021785,2]
[350004659,1737561060937,-500.0,0.00021785,2]
[350004660,1737561060947,-1042.11,0.00021785,2]
[350004661,1737561060957,-1189.2,0.00021785,2]
[350004662,1737561060971,-1322.9,0.00021785,2]
[350004663,1737561060981,-500.0,0.00021785,2]
[350004664,1737561060991,-1000.0,0.00021785,2]
[350004665,1737561061001,-1209.14,0.00021785,2]
[350004666,1737561061011,-500.0,0.00021785,2]
[350004667,1737561061020,-2059.96,0.00021785,2]
[350004668,1737561061031,-424.33663619,0.00021786,4]
[350004669,1737561061040,-217.07278203,0.00021786,4]
[350004670,1737561061050,-500.0,0.00021786,2]
[350004671,1737561061059,-500.0,0.00021786,2]
[350004672,1737561061069,-500.0,0.00021786,2]
[350004673,1737561061078,-500.0,0.00021786,2]
[350004674,1737561061088,-500.0,0.00021786,2]
[350004675,1737561061097,-500.0,0.00021786,2]
[350004676,1737561061106,-500.0,0.00021786,2]
[350004677,1737561061116,-500.0,0.00021786,2]
[350004678,1737561061125,-500.0,0.00021786,2]
[350004679,1737561061135,-500.0,0.00021786,2]
[350004680,1737561061144,-500.0,0.00021786,2]
[350004681,1737561061154,-522.49415733,0.00021786,2]
[350004682,1737561061163,-571.11,0.00021786,2]
[350004683,1737561061173,-530.96274226,0.00021786,2]
[350004684,1737561061182,-500.0,0.00021786,2]
[350004685,1737561061192,-524.87,0.00021786,2]
[350004686,1737561061202,-500.0,0.00021786,2]
[350004687,1737561061211,-500.0,0.00021786,2]
[350004688,1737561061226,-575.83,0.00021786,2]
[350004689,1737561061236,-500.0,0.00021786,2]
[350004690,1737561061245,-391.41697422,0.00021786,2]
[350004691,1737561061255,-500.0,0.00021786,2]
[350004692,1737561061264,-570.68,0.00021786,2]
[350004693,1737561061274,-500.0,0.00021786,2]
[350004694,1737561061284,-500.0,0.00021786,2]
[350004695,1737561061293,-500.0,0.00021786,2]
[350004696,1737561061303,-500.0,0.00021786,2]
[350004697,1737561061312,-500.0,0.00021786,2]
[350004698,1737561061322,-500.0,0.00021786,2]
[350004699,1737561061331,-519.71,0.00021786,2]
[350004700,1737561061342,-500.0,0.00021786,2]
[350004701,1737561061351,-730.26,0.00021786,2]
[350004702,1737561061360,-500.0,0.00021786,2]
[350004703,1737561061370,-500.0,0.00021786,2]
[350004704,1737561061379,-500.0,0.00021786,2]
[350004705,1737561061389,-500.0,0.00021786,2]
[350004706,1737561061398,-589.51,0.00021786,2]
[350004707,1737561061407,-500.0,0.00021786,2]
[350004708,1737561061417,-500.0,0.00021786,2]
[350004709,1737561061426,-500.0,0.00021786,2]
[350004710,1737561061436,-500.0,0.00021786,2]
[350004711,1737561061445,-500.0,0.00021786,2]
[350004712,1737561061454,-500.0,0.00021786,2]
[350004713,1737561061464,-171.39588247,0.00021786,2]